[Event "Live Chess"]
[Site "Chess.com"]
[Date "2023.05.20"]
[Round "-"]
[White "lateforthesky"]
[Black "FlyingChessKestrel13"]
[Result "0-1"]
[WhiteElo "2068"]
[BlackElo "2127"]
[TimeControl "300"]
[EndTime "10:35:55 PDT"]
[Termination "FlyingChessKestrel13 won by resignation"]

1. e4 {[%clk 0:04:57.8]} 1... Nc6 {[%clk 0:04:52.8]} 2. Nf3 {[%clk 0:04:56.2]}
2... e6 {[%clk 0:04:48.6]} 3. g3 {[%clk 0:04:45.8]} 3... d5 {[%clk 0:04:45.6]}
4. exd5 {[%clk 0:04:42.6]} 4... exd5 {[%clk 0:04:44.8]} 5. Bg2 {[%clk
0:04:41.6]} 5... Be6 {[%clk 0:04:44.4]} 6. O-O {[%clk 0:04:40]} 6... Nf6 {[%clk
0:04:44]} 7. d4 {[%clk 0:04:34.2]} 7... Bd6 {[%clk 0:04:42.6]} 8. Re1 {[%clk
0:04:27.9]} 8... O-O {[%clk 0:04:41.7]} 9. h3 {[%clk 0:04:26.7]} 9... Qd7 {[%clk
0:04:39.6]} 10. Kh2 {[%clk 0:04:25.4]} 10... Ne4 {[%clk 0:04:38.6]} 11. Qe2
{[%clk 0:04:18.5]} 11... Rfe8 {[%clk 0:04:34.1]} 12. c4 {[%clk 0:04:08.9]} 12...
Bf5 {[%clk 0:04:26.7]} 13. cxd5 {[%clk 0:04:02.5]} 13... Nb4 {[%clk 0:04:17.4]}
14. Ne5 {[%clk 0:03:59.5]} 14... Bxe5 {[%clk 0:04:11.5]} 15. dxe5 {[%clk
0:03:52]} 15... Nc5 {[%clk 0:03:56.1]} 16. Nc3 {[%clk 0:03:38.1]} 16... Nc2
{[%clk 0:03:53.5]} 17. Bf4 {[%clk 0:03:33]} 17... Nxe1 {[%clk 0:03:49]} 18. Rxe1
{[%clk 0:03:26.2]} 18... Nd3 {[%clk 0:03:48.1]} 19. Rd1 {[%clk 0:03:05.8]} 19...
Nxf4 {[%clk 0:03:46.4]} 20. gxf4 {[%clk 0:03:05]} 20... Qe7 {[%clk 0:03:44]} 21.
Qh5 {[%clk 0:02:29.1]} 21... g6 {[%clk 0:03:38]} 22. Qf3 {[%clk 0:02:22.5]}
22... Rad8 {[%clk 0:03:35.4]} 23. Ne2 {[%clk 0:02:07.5]} 23... f6 {[%clk
0:03:31.3]} 24. Nd4 {[%clk 0:01:48.2]} 24... fxe5 {[%clk 0:03:28.8]} 25. Nxf5
{[%clk 0:01:46.5]} 25... gxf5 {[%clk 0:03:27.6]} 26. fxe5 {[%clk 0:01:39.8]}
26... Qxe5+ {[%clk 0:03:25.5]} 27. Kh1 {[%clk 0:01:38.9]} 27... Kh8 {[%clk
0:03:23.2]} 28. Qh5 {[%clk 0:01:23.5]} 28... f4 {[%clk 0:03:16.5]} 29. Qxe5+
{[%clk 0:01:15.2]} 29... Rxe5 {[%clk 0:03:14.5]} 30. Bf3 {[%clk 0:01:12.9]}
30... c6 {[%clk 0:03:08.6]} 31. d6 {[%clk 0:01:06]} 31... h5 {[%clk 0:03:00.4]}
32. Rd4 {[%clk 0:01:02.5]} 32... Kg7 {[%clk 0:02:58.1]} 33. Rxf4 {[%clk
0:00:59.2]} 33... Rxd6 {[%clk 0:02:57]} 34. Rb4 {[%clk 0:00:56.3]} 34... b5
{[%clk 0:02:54.3]} 35. a4 {[%clk 0:00:48.7]} 35... a5 {[%clk 0:02:52.2]} 36. Rh4
{[%clk 0:00:43.8]} 36... Kh6 {[%clk 0:02:50.1]} 37. axb5 {[%clk 0:00:32]} 37...
Rxb5 {[%clk 0:02:44.5]} 38. Rc4 {[%clk 0:00:27.4]} 38... Rxb2 {[%clk 0:02:41.5]}
39. Bxc6 {[%clk 0:00:19.7]} 39... Rxf2 {[%clk 0:02:38.8]} 40. Kg1 {[%clk
0:00:19]} 40... Rb2 {[%clk 0:02:35.9]} 0-1

[Event "Live Chess"]
[Site "Chess.com"]
[Date "2023.05.20"]
[Round "-"]
[White "Reggie016"]
[Black "OceanFloater"]
[Result "1-0"]
[WhiteElo "1070"]
[BlackElo "988"]
[TimeControl "300"]
[EndTime "10:36:04 PDT"]
[Termination "Reggie016 won by checkmate"]

1. e4 {[%clk 0:04:58.7]} 1... c6 {[%clk 0:04:59.3]} 2. d4 {[%clk 0:04:56.7]}
2... d5 {[%clk 0:04:58.6]} 3. Nc3 {[%clk 0:04:55.6]} 3... e6 {[%clk 0:04:48.6]}
4. exd5 {[%clk 0:04:54.3]} 4... cxd5 {[%clk 0:04:46.9]} 5. Nf3 {[%clk 0:04:54]}
5... Bb4 {[%clk 0:04:44.5]} 6. Bd2 {[%clk 0:04:52.4]} 6... Nc6 {[%clk
0:04:43.1]} 7. Bb5 {[%clk 0:04:49.9]} 7... a6 {[%clk 0:04:40.6]} 8. Bxc6+ {[%clk
0:04:48.2]} 8... bxc6 {[%clk 0:04:39.8]} 9. Ne5 {[%clk 0:04:47.2]} 9... Qc7
{[%clk 0:04:36.2]} 10. O-O {[%clk 0:04:39.7]} 10... f6 {[%clk 0:04:35]} 11. Qh5+
{[%clk 0:04:34]} 11... g6 {[%clk 0:04:29.7]} 12. Nxg6 {[%clk 0:04:30.4]} 12...
Qf7 {[%clk 0:04:20]} 13. g4 {[%clk 0:04:01.7]} 13... Ne7 {[%clk 0:04:18.2]} 14.
Nxh8 {[%clk 0:03:56.9]} 14... Qxh5 {[%clk 0:04:14.2]} 15. gxh5 {[%clk
0:03:56.8]} 15... Kf8 {[%clk 0:04:09.8]} 16. Kh1 {[%clk 0:03:31.5]} 16... Kg7
{[%clk 0:04:06]} 17. Ng6 {[%clk 0:03:28.4]} 17... hxg6 {[%clk 0:04:04.8]} 18.
hxg6 {[%clk 0:03:28.3]} 18... Nxg6 {[%clk 0:04:03.5]} 19. Rg1 {[%clk 0:03:27.7]}
19... Bd7 {[%clk 0:03:56.9]} 20. Rae1 {[%clk 0:03:23.1]} 20... Rh8 {[%clk
0:03:54.4]} 21. a3 {[%clk 0:03:15.3]} 21... Bd6 {[%clk 0:03:53.2]} 22. Rg2
{[%clk 0:03:03.6]} 22... Kf7 {[%clk 0:03:44.3]} 23. Reg1 {[%clk 0:02:59.7]}
23... Nf4 {[%clk 0:03:25.4]} 24. Rg7+ {[%clk 0:02:51.6]} 24... Ke8 {[%clk
0:03:24.1]} 25. Rg8+ {[%clk 0:02:46.2]} 25... Rxg8 {[%clk 0:03:22.5]} 26. Rxg8+
{[%clk 0:02:46.1]} 26... Kf7 {[%clk 0:03:21.7]} 27. Ra8 {[%clk 0:02:41.4]} 27...
Nh3 {[%clk 0:03:15.5]} 28. Kg2 {[%clk 0:02:32.1]} 28... e5 {[%clk 0:03:06.2]}
29. dxe5 {[%clk 0:02:25.9]} 29... Bxe5 {[%clk 0:03:01.7]} 30. Rxa6 {[%clk
0:02:23.6]} 30... d4 {[%clk 0:02:59.5]} 31. Ne4 {[%clk 0:02:18.3]} 31... c5
{[%clk 0:02:47.3]} 32. Nxc5 {[%clk 0:02:10.3]} 32... Ng5 {[%clk 0:02:42.1]} 33.
Nxd7 {[%clk 0:02:08.4]} 33... Ne4 {[%clk 0:02:38.2]} 34. Nxe5+ {[%clk 0:02:02]}
34... fxe5 {[%clk 0:02:37.2]} 35. Bb4 {[%clk 0:02:00.4]} 35... Nf6 {[%clk
0:02:27.4]} 36. h4 {[%clk 0:01:59.7]} 36... Nd7 {[%clk 0:02:24.6]} 37. h5 {[%clk
0:01:56.9]} 37... Nf6 {[%clk 0:02:20.2]} 38. h6 {[%clk 0:01:54]} 38... Nh7
{[%clk 0:02:18.6]} 39. Bd2 {[%clk 0:01:51.8]} 39... Kg8 {[%clk 0:02:15.4]} 40.
Kf3 {[%clk 0:01:50.9]} 40... Kf7 {[%clk 0:02:14.4]} 41. Ke4 {[%clk 0:01:50.3]}
41... Ng5+ {[%clk 0:02:11.9]} 42. Kxe5 {[%clk 0:01:48.4]} 42... Nf3+ {[%clk
0:02:10]} 43. Ke4 {[%clk 0:01:45.6]} 43... Nxd2+ {[%clk 0:02:09.1]} 44. Kxd4
{[%clk 0:01:45.5]} 44... Nf3+ {[%clk 0:02:08.1]} 45. Ke4 {[%clk 0:01:44.5]}
45... Ng5+ {[%clk 0:02:07.3]} 46. Kf5 {[%clk 0:01:43.8]} 46... Nh7 {[%clk
0:02:06.4]} 47. b4 {[%clk 0:01:42.4]} 47... Nf8 {[%clk 0:02:04.2]} 48. b5 {[%clk
0:01:41.5]} 48... Nd7 {[%clk 0:02:02.8]} 49. b6 {[%clk 0:01:40.2]} 49... Kg8
{[%clk 0:02:00.2]} 50. b7 {[%clk 0:01:38.2]} 50... Kh7 {[%clk 0:01:58.2]} 51.
Rd6 {[%clk 0:01:36.5]} 51... Nb8 {[%clk 0:01:54.4]} 52. Rd8 {[%clk 0:01:35.6]}
52... Na6 {[%clk 0:01:53]} 53. b8=Q {[%clk 0:01:33.7]} 53... Nxb8 {[%clk
0:01:51.6]} 54. Rxb8 {[%clk 0:01:33.6]} 54... Kxh6 {[%clk 0:01:50.9]} 55. a4
{[%clk 0:01:33.4]} 55... Kg7 {[%clk 0:01:50]} 56. a5 {[%clk 0:01:33.3]} 56...
Kf7 {[%clk 0:01:49.5]} 57. a6 {[%clk 0:01:33.2]} 57... Ke7 {[%clk 0:01:49.3]}
58. a7 {[%clk 0:01:32.9]} 58... Kd7 {[%clk 0:01:49.1]} 59. a8=Q {[%clk
0:01:31.9]} 59... Kd6 {[%clk 0:01:48.2]} 60. Qa5 {[%clk 0:01:25.6]} 60... Kc6
{[%clk 0:01:47.2]} 61. Rb6+ {[%clk 0:01:24.2]} 61... Kc7 {[%clk 0:01:46.1]} 62.
Qa7+ {[%clk 0:01:23.9]} 62... Kc8 {[%clk 0:01:42.4]} 63. Rb8# {[%clk 0:01:23.8]}
1-0

[Event "Live Chess"]
[Site "Chess.com"]
[Date "2023.05.20"]
[Round "-"]
[White "lHolyDiverl"]
[Black "alanmike75"]
[Result "0-1"]
[WhiteElo "562"]
[BlackElo "1480"]
[TimeControl "300"]
[EndTime "10:36:11 PDT"]
[Termination "alanmike75 won on time"]

1. d4 {[%clk 0:04:57.1]} 1... d5 {[%clk 0:04:56]} 2. Nc3 {[%clk 0:04:56.3]} 2...
Nf6 {[%clk 0:04:53.7]} 3. Bf4 {[%clk 0:04:55.5]} 3... e6 {[%clk 0:04:52.3]} 4.
Nb5 {[%clk 0:04:53.9]} 4... Bd6 {[%clk 0:04:50.4]} 5. Nxd6+ {[%clk 0:04:50.7]}
5... cxd6 {[%clk 0:04:49.3]} 6. e3 {[%clk 0:04:47.5]} 6... O-O {[%clk 0:04:48]}
7. Nf3 {[%clk 0:04:41.6]} 7... Nc6 {[%clk 0:04:46.6]} 8. Be2 {[%clk 0:04:26.2]}
8... Re8 {[%clk 0:04:40.5]} 9. O-O {[%clk 0:04:24.1]} 9... e5 {[%clk 0:04:39.1]}
10. dxe5 {[%clk 0:04:06.9]} 10... dxe5 {[%clk 0:04:37.5]} 11. Bg5 {[%clk
0:03:54.1]} 11... Be6 {[%clk 0:04:31.2]} 12. Bb5 {[%clk 0:03:34.6]} 12... h6
{[%clk 0:04:18.7]} 13. Nxe5 {[%clk 0:03:20.4]} 13... Nxe5 {[%clk 0:04:14.5]} 14.
Bxe8 {[%clk 0:03:14.3]} 14... Qxe8 {[%clk 0:04:09.3]} 15. Bxf6 {[%clk
0:02:52.6]} 15... gxf6 {[%clk 0:04:07.6]} 16. f4 {[%clk 0:02:51.5]} 16... Nc4
{[%clk 0:03:35.8]} 17. Qd4 {[%clk 0:02:34.2]} 17... Kg7 {[%clk 0:03:25.4]} 18.
f5 {[%clk 0:02:18.1]} 18... Bd7 {[%clk 0:03:23.1]} 19. b3 {[%clk 0:01:28.7]}
19... Qxe3+ {[%clk 0:03:18.8]} 20. Qxe3 {[%clk 0:01:22.9]} 20... Nxe3 {[%clk
0:03:17.3]} 21. Rfe1 {[%clk 0:01:18.6]} 21... Nxc2 {[%clk 0:03:13.8]} 22. Re7
{[%clk 0:01:16.3]} 22... Nxa1 {[%clk 0:03:06.1]} 23. Rxd7 {[%clk 0:01:14.2]}
23... b6 {[%clk 0:02:58.4]} 24. Rxd5 {[%clk 0:01:09.7]} 24... Nc2 {[%clk
0:02:56.7]} 25. Rd3 {[%clk 0:01:03.3]} 25... Nb4 {[%clk 0:02:53.7]} 26. Rg3+
{[%clk 0:01:01.9]} 26... Kh7 {[%clk 0:02:50.2]} 27. a3 {[%clk 0:00:58.1]} 27...
Nc6 {[%clk 0:02:45.8]} 28. Rc3 {[%clk 0:00:48.4]} 28... Ne5 {[%clk 0:02:41.3]}
29. Rc7 {[%clk 0:00:41.6]} 29... Kg7 {[%clk 0:02:39.5]} 30. Rc3 {[%clk
0:00:38.8]} 30... Rd8 {[%clk 0:02:31]} 31. Rg3+ {[%clk 0:00:35.8]} 31... Kf8
{[%clk 0:02:28.8]} 32. h3 {[%clk 0:00:28.7]} 32... Rd3 {[%clk 0:02:23.4]} 33.
Rxd3 {[%clk 0:00:22.1]} 33... Nxd3 {[%clk 0:02:21.8]} 34. Kf1 {[%clk 0:00:21]}
34... Ke8 {[%clk 0:02:18]} 35. Ke2 {[%clk 0:00:20.2]} 35... Nc1+ {[%clk
0:02:16.4]} 36. Kd2 {[%clk 0:00:18.7]} 36... Nxb3+ {[%clk 0:02:15]} 37. Ke3
{[%clk 0:00:14.4]} 37... Kd7 {[%clk 0:02:13.2]} 38. Ke4 {[%clk 0:00:12.1]} 38...
Kd6 {[%clk 0:02:11.9]} 39. g4 {[%clk 0:00:06.4]} 39... a5 {[%clk 0:02:10.1]} 40.
h4 {[%clk 0:00:05.5]} 40... b5 {[%clk 0:02:08.3]} 0-1

[Event "Live Chess"]
[Site "Chess.com"]
[Date "2023.05.20"]
[Round "-"]
[White "Dark_Night123"]
[Black "Yehor20132013"]
[Result "1-0"]
[WhiteElo "1582"]
[BlackElo "560"]
[TimeControl "300"]
[EndTime "10:36:11 PDT"]
[Termination "Dark_Night123 won by checkmate"]

1. e4 {[%clk 0:04:59.2]} 1... e5 {[%clk 0:04:58.4]} 2. Nf3 {[%clk 0:04:58.6]}
2... Bd6 {[%clk 0:04:51]} 3. d4 {[%clk 0:04:56.6]} 3... Nc6 {[%clk 0:04:46.1]}
4. d5 {[%clk 0:04:54.5]} 4... Nce7 {[%clk 0:04:26.5]} 5. Nc3 {[%clk 0:04:50.7]}
5... Bb4 {[%clk 0:04:19.8]} 6. a3 {[%clk 0:04:49]} 6... Bxc3+ {[%clk 0:04:16.1]}
7. bxc3 {[%clk 0:04:48.9]} 7... Nf6 {[%clk 0:04:11]} 8. Bd3 {[%clk 0:04:47.8]}
8... O-O {[%clk 0:04:06.8]} 9. Bg5 {[%clk 0:04:45.8]} 9... h6 {[%clk 0:04:02.6]}
10. Bxf6 {[%clk 0:04:44.6]} 10... gxf6 {[%clk 0:03:55.1]} 11. Qd2 {[%clk
0:04:43]} 11... Ng6 {[%clk 0:03:52.9]} 12. Qxh6 {[%clk 0:04:36.4]} 12... Nh4
{[%clk 0:03:37.2]} 13. Nxh4 {[%clk 0:04:33.8]} 13... Re8 {[%clk 0:03:33.9]} 14.
Nf5 {[%clk 0:04:31.4]} 14... Qe7 {[%clk 0:03:29.6]} 15. Qg7# {[%clk 0:04:30]}
1-0

[Event "Live Chess"]
[Site "Chess.com"]
[Date "2023.05.20"]
[Round "-"]
[White "Bob2pen"]
[Black "xx_blindpuffin_xx"]
[Result "0-1"]
[WhiteElo "1726"]
[BlackElo "2189"]
[TimeControl "300"]
[EndTime "10:36:15 PDT"]
[Termination "xx_blindpuffin_xx won by resignation"]

1. c4 {[%clk 0:04:57.9]} 1... e6 {[%clk 0:04:58.2]} 2. g3 {[%clk 0:04:55.7]}
2... d5 {[%clk 0:04:57.7]} 3. Bg2 {[%clk 0:04:55]} 3... c6 {[%clk 0:04:57.2]} 4.
Nf3 {[%clk 0:04:53.7]} 4... Nf6 {[%clk 0:04:54.3]} 5. O-O {[%clk 0:04:52.6]}
5... Be7 {[%clk 0:04:53.9]} 6. b3 {[%clk 0:04:51.6]} 6... O-O {[%clk 0:04:53.3]}
7. Bb2 {[%clk 0:04:50.7]} 7... b6 {[%clk 0:04:53]} 8. d3 {[%clk 0:04:49.7]} 8...
Bb7 {[%clk 0:04:52.5]} 9. Nbd2 {[%clk 0:04:47.7]} 9... Nbd7 {[%clk 0:04:51.8]}
10. Re1 {[%clk 0:04:46]} 10... Rc8 {[%clk 0:04:51]} 11. e4 {[%clk 0:04:44.7]}
11... dxe4 {[%clk 0:04:50]} 12. dxe4 {[%clk 0:04:42.6]} 12... Nc5 {[%clk
0:04:49.2]} 13. Qe2 {[%clk 0:04:35.5]} 13... Nd3 {[%clk 0:04:35.7]} 14. Bc3
{[%clk 0:04:32.1]} 14... Nxe1 {[%clk 0:04:33.8]} 15. Rxe1 {[%clk 0:04:24]} 15...
c5 {[%clk 0:04:24.2]} 16. e5 {[%clk 0:04:19.5]} 16... Nd7 {[%clk 0:04:21.9]} 17.
Ne4 {[%clk 0:04:15.8]} 17... Qc7 {[%clk 0:04:14.5]} 18. Rd1 {[%clk 0:04:12.4]}
18... Rfd8 {[%clk 0:04:12.5]} 19. Nd6 {[%clk 0:04:09.6]} 19... Nf8 {[%clk
0:04:02.9]} 20. Nxc8 {[%clk 0:04:07]} 20... Qxc8 {[%clk 0:04:01.4]} 21. Rxd8
{[%clk 0:04:02.1]} 21... Bxd8 {[%clk 0:04:01.3]} 22. Qd3 {[%clk 0:03:54.6]}
22... Ng6 {[%clk 0:03:58.9]} 23. Nd2 {[%clk 0:03:51.2]} 23... Bxg2 {[%clk
0:03:58.8]} 24. Kxg2 {[%clk 0:03:49.9]} 24... h5 {[%clk 0:03:52.8]} 25. Ne4
{[%clk 0:03:48.1]} 25... Bc7 {[%clk 0:03:46.8]} 26. Ng5 {[%clk 0:03:40.7]} 26...
h4 {[%clk 0:03:04.2]} 27. Qe2 {[%clk 0:03:37]} 27... Bd8 {[%clk 0:02:52]} 28.
Ne4 {[%clk 0:03:32.7]} 28... Qc6 {[%clk 0:02:46.5]} 29. Qf3 {[%clk 0:03:29.4]}
29... Qd7 {[%clk 0:02:35]} 30. Nd6 {[%clk 0:03:27.5]} 30... Bc7 {[%clk
0:02:33.9]} 31. Qd3 {[%clk 0:03:17]} 31... Qc6+ {[%clk 0:02:27.7]} 32. Qf3
{[%clk 0:03:12.3]} 32... h3+ {[%clk 0:02:26.4]} 0-1

[Event "Live Chess"]
[Site "Chess.com"]
[Date "2023.05.20"]
[Round "-"]
[White "Mikhail_Golubev"]
[Black "Ferrarifan27"]
[Result "1-0"]
[WhiteElo "2541"]
[BlackElo "2083"]
[TimeControl "300"]
[EndTime "10:36:20 PDT"]
[Termination "Mikhail_Golubev won by checkmate"]

1. e4 {[%clk 0:04:56.6]} 1... e5 {[%clk 0:04:58.3]} 2. Nf3 {[%clk 0:04:54.9]}
2... Nc6 {[%clk 0:04:56.5]} 3. Bc4 {[%clk 0:04:54]} 3... Bc5 {[%clk 0:04:54.4]}
4. c3 {[%clk 0:04:52.7]} 4... Nf6 {[%clk 0:04:52.8]} 5. d4 {[%clk 0:04:52.3]}
5... exd4 {[%clk 0:04:51.7]} 6. cxd4 {[%clk 0:04:52.2]} 6... Bb4+ {[%clk
0:04:50.9]} 7. Nbd2 {[%clk 0:04:51.6]} 7... Nxe4 {[%clk 0:04:48.1]} 8. d5 {[%clk
0:04:50.1]} 8... Na5 {[%clk 0:04:44.7]} 9. O-O {[%clk 0:04:12.4]} 9... Nxc4
{[%clk 0:04:43.5]} 10. Nxe4 {[%clk 0:04:06.8]} 10... Nd6 {[%clk 0:04:10.3]} 11.
Qd4 {[%clk 0:03:32.6]} 11... Nxe4 {[%clk 0:04:06.2]} 12. Qxb4 {[%clk 0:03:28.2]}
12... Nd6 {[%clk 0:03:59.6]} 13. Re1+ {[%clk 0:03:23.4]} 13... Kf8 {[%clk
0:03:58.8]} 14. Bf4 {[%clk 0:03:10.5]} 14... Qf6 {[%clk 0:03:56.7]} 15. Bg5
{[%clk 0:03:04.7]} 15... Qg6 {[%clk 0:03:53.7]} 16. Be7+ {[%clk 0:03:03.3]}
16... Kg8 {[%clk 0:03:51.5]} 17. Bxd6 {[%clk 0:03:02.9]} 17... Qxd6 {[%clk
0:03:45.5]} 18. Re8+ {[%clk 0:03:01.1]} 18... Qf8 {[%clk 0:03:43.6]} 19. Rxf8#
{[%clk 0:02:59.6]} 1-0

[Event "Live Chess"]
[Site "Chess.com"]
[Date "2023.05.20"]
[Round "-"]
[White "vinni3012"]
[Black "seabuck"]
[Result "0-1"]
[WhiteElo "1856"]
[BlackElo "1858"]
[TimeControl "300"]
[EndTime "10:36:29 PDT"]
[Termination "seabuck won by resignation"]

1. d4 {[%clk 0:04:58.3]} 1... e6 {[%clk 0:04:58.9]} 2. c4 {[%clk 0:04:57.3]}
2... d5 {[%clk 0:04:57.9]} 3. Nc3 {[%clk 0:04:53.4]} 3... c5 {[%clk 0:04:56.6]}
4. cxd5 {[%clk 0:04:49.4]} 4... exd5 {[%clk 0:04:55.1]} 5. Nf3 {[%clk
0:04:48.7]} 5... Nc6 {[%clk 0:04:53.6]} 6. dxc5 {[%clk 0:04:17.2]} 6... d4
{[%clk 0:04:52.2]} 7. Ne4 {[%clk 0:04:16.5]} 7... Bf5 {[%clk 0:04:34.2]} 8. Nd6+
{[%clk 0:04:11.3]} 8... Bxd6 {[%clk 0:04:32]} 9. cxd6 {[%clk 0:04:11.2]} 9...
Qxd6 {[%clk 0:04:30.2]} 10. e3 {[%clk 0:04:09.8]} 10... Rd8 {[%clk 0:04:20.2]}
11. exd4 {[%clk 0:04:05.9]} 11... Nxd4 {[%clk 0:04:13.6]} 12. Nxd4 {[%clk
0:04:03.5]} 12... Qxd4 {[%clk 0:04:09.1]} 13. Qxd4 {[%clk 0:04:01.8]} 13... Rxd4
{[%clk 0:04:07.2]} 14. Bb5+ {[%clk 0:03:57.5]} 14... Bd7 {[%clk 0:03:58.7]} 15.
Bxd7+ {[%clk 0:03:54.8]} 15... Kxd7 {[%clk 0:03:56]} 16. Be3 {[%clk 0:03:49.1]}
16... Re4 {[%clk 0:03:52.3]} 17. Rd1+ {[%clk 0:03:44.6]} 17... Kc7 {[%clk
0:03:44.6]} 18. O-O {[%clk 0:03:42]} 18... Nf6 {[%clk 0:03:40.9]} 19. Rc1+
{[%clk 0:03:28.5]} 19... Kb8 {[%clk 0:03:35.8]} 20. g3 {[%clk 0:02:56.5]} 20...
Nd5 {[%clk 0:03:22.8]} 21. Rfe1 {[%clk 0:02:13.6]} 21... Rhe8 {[%clk 0:03:06.2]}
22. Bd2 {[%clk 0:02:09.4]} 22... g6 {[%clk 0:02:43.5]} 23. Kg2 {[%clk
0:01:48.1]} 23... a6 {[%clk 0:02:24.9]} 24. Kf3 {[%clk 0:01:41.1]} 24... R4e6
{[%clk 0:02:07.8]} 25. Rxe6 {[%clk 0:01:16.8]} 25... Rxe6 {[%clk 0:02:05.5]} 26.
Re1 {[%clk 0:01:13.1]} 26... Rf6+ {[%clk 0:01:50.2]} 27. Kg2 {[%clk 0:01:09]}
27... Kc7 {[%clk 0:01:45.8]} 28. f4 {[%clk 0:00:58.5]} 28... b5 {[%clk
0:01:30.6]} 29. Re5 {[%clk 0:00:50.8]} 29... Kc6 {[%clk 0:01:25.3]} 30. Kf3
{[%clk 0:00:38.2]} 30... Rd6 {[%clk 0:01:20.2]} 31. Ke4 {[%clk 0:00:25.6]} 31...
Nf6+ {[%clk 0:01:11.5]} 32. Ke3 {[%clk 0:00:16.9]} 32... Ng4+ {[%clk 0:01:10.4]}
33. Ke2 {[%clk 0:00:16.3]} 33... Nxe5 {[%clk 0:01:09.2]} 34. fxe5 {[%clk
0:00:15]} 34... Re6 {[%clk 0:01:05.4]} 35. Bc3 {[%clk 0:00:13.8]} 35... Kd5
{[%clk 0:01:03.6]} 36. a3 {[%clk 0:00:12.3]} 36... f6 {[%clk 0:00:59.5]} 0-1

[Event "Live Chess"]
[Site "Chess.com"]
[Date "2023.05.20"]
[Round "-"]
[White "ViktorTheCoolBoy"]
[Black "Doge_Dandolo"]
[Result "1-0"]
[WhiteElo "2540"]
[BlackElo "2123"]
[TimeControl "300"]
[EndTime "10:36:30 PDT"]
[Termination "ViktorTheCoolBoy won by resignation"]

1. d4 {[%clk 0:04:57.4]} 1... d5 {[%clk 0:04:53.2]} 2. Nf3 {[%clk 0:04:56.2]}
2... Nf6 {[%clk 0:04:50.7]} 3. c4 {[%clk 0:04:54.9]} 3... c6 {[%clk 0:04:49.4]}
4. Nc3 {[%clk 0:04:53.5]} 4... a6 {[%clk 0:04:48.4]} 5. e3 {[%clk 0:04:51.8]}
5... Bf5 {[%clk 0:04:46.6]} 6. a4 {[%clk 0:04:46.1]} 6... a5 {[%clk 0:04:44.2]}
7. Qb3 {[%clk 0:04:43.2]} 7... e6 {[%clk 0:04:37]} 8. Qxb7 {[%clk 0:04:40]} 8...
Nbd7 {[%clk 0:04:29.9]} 9. Qb3 {[%clk 0:04:29.3]} 9... Rb8 {[%clk 0:04:24.7]}
10. Qd1 {[%clk 0:04:27.7]} 10... c5 {[%clk 0:04:19]} 11. cxd5 {[%clk 0:04:23.6]}
11... exd5 {[%clk 0:04:14.6]} 12. Bb5 {[%clk 0:04:22]} 12... Bd6 {[%clk
0:04:05.7]} 13. dxc5 {[%clk 0:04:20.7]} 13... Bxc5 {[%clk 0:04:02.6]} 14. Nd4
{[%clk 0:04:19.8]} 14... Bg4 {[%clk 0:03:56]} 15. Qb3 {[%clk 0:04:03.8]} 15...
O-O {[%clk 0:03:50.7]} 16. Nc6 {[%clk 0:04:01.6]} 16... Qb6 {[%clk 0:03:45.2]}
17. Nxb8 {[%clk 0:03:59.7]} 17... Rxb8 {[%clk 0:03:42.6]} 18. O-O {[%clk
0:03:55]} 18... Ne5 {[%clk 0:03:36.3]} 19. Nxd5 {[%clk 0:03:47.3]} 19... Nxd5
{[%clk 0:03:35]} 20. Qxd5 {[%clk 0:03:47.2]} 20... Ng6 {[%clk 0:03:23.9]} 21.
Qc6 {[%clk 0:03:33.3]} 21... Qa7 {[%clk 0:03:14.5]} 22. b3 {[%clk 0:03:28.4]}
22... Rc8 {[%clk 0:03:03.5]} 23. Qe4 {[%clk 0:03:26.6]} 23... Be6 {[%clk
0:02:57.5]} 24. Bb2 {[%clk 0:03:19.5]} 24... Bxb3 {[%clk 0:02:48.7]} 25. Rac1
{[%clk 0:03:18.2]} 25... Rd8 {[%clk 0:02:35.6]} 26. h4 {[%clk 0:02:44.9]} 26...
Bd5 {[%clk 0:02:25.8]} 27. Qg4 {[%clk 0:02:40.8]} 27... Bf8 {[%clk 0:02:21]} 28.
h5 {[%clk 0:02:38.5]} 28... Be6 {[%clk 0:02:11.2]} 29. Qg3 {[%clk 0:02:36.1]}
29... Ne7 {[%clk 0:02:08.5]} 30. e4 {[%clk 0:02:29.2]} 30... Qb7 {[%clk
0:01:55.1]} 31. Rfe1 {[%clk 0:02:21.5]} 31... Qb6 {[%clk 0:01:42.2]} 32. Bxg7
{[%clk 0:02:17.4]} 32... Bxg7 {[%clk 0:01:37]} 33. h6 {[%clk 0:02:16.6]} 33...
Ng6 {[%clk 0:01:28.3]} 34. hxg7 {[%clk 0:02:15.8]} 34... Kxg7 {[%clk 0:01:27.4]}
35. Red1 {[%clk 0:02:08]} 35... Bb3 {[%clk 0:01:22.5]} 36. Qxb3 {[%clk
0:02:02.1]} 1-0